[Event "*** Titled Tuesday Blitz"]
[Site "Chess.com"]
[Date "2019.04.02"]
[Round "2"]
[White "Msb2"]
[Black "Miguelito"]
[Result "0-1"]
[WhiteElo "2824"]
[BlackElo "2612"]
[TimeControl "180+2"]
[EndTime "14:25:01 PDT"]
[Termination "Miguelito won by checkmate"]

1. d4 {[%clk 0:03:01.9]} 1... Nf6 {[%clk 0:03:00.4]} 2. c4 {[%clk 0:03:02.2]}
2... e6 {[%clk 0:03:01.7]} 3. Nc3 {[%clk 0:03:03.4]} 3... Bb4 {[%clk 0:03:01.5]}
4. e3 {[%clk 0:03:04.8]} 4... O-O {[%clk 0:03:01.5]} 5. Bd2 {[%clk 0:03:06.1]}
5... d5 {[%clk 0:03:02.2]} 6. Nf3 {[%clk 0:03:06.8]} 6... b6 {[%clk 0:02:58.2]}
7. cxd5 {[%clk 0:03:07.8]} 7... exd5 {[%clk 0:02:59.7]} 8. Rc1 {[%clk
0:03:09.3]} 8... c5 {[%clk 0:03:01]} 9. a3 {[%clk 0:02:59.8]} 9... Bxc3 {[%clk
0:03:01.8]} 10. Bxc3 {[%clk 0:03:01.7]} 10... c4 {[%clk 0:03:02.5]} 11. a4
{[%clk 0:02:42.1]} 11... a6 {[%clk 0:02:54.9]} 12. Be2 {[%clk 0:02:39]} 12...
Nc6 {[%clk 0:02:54.8]} 13. b3 {[%clk 0:02:33.6]} 13... b5 {[%clk 0:02:55.1]} 14.
bxc4 {[%clk 0:02:35.1]} 14... bxc4 {[%clk 0:02:54.7]} 15. Nd2 {[%clk 0:02:34.2]}
15... Bf5 {[%clk 0:02:46]} 16. g4 {[%clk 0:02:31.5]} 16... Bg6 {[%clk
0:02:42.1]} 17. h4 {[%clk 0:02:31.8]} 17... h6 {[%clk 0:02:37.3]} 18. g5 {[%clk
0:02:26.5]} 18... hxg5 {[%clk 0:02:37.9]} 19. hxg5 {[%clk 0:02:28.4]} 19... Nh7
{[%clk 0:02:34.2]} 20. f4 {[%clk 0:02:25.5]} 20... Re8 {[%clk 0:02:32.8]} 21.
Kf2 {[%clk 0:02:21.7]} 21... Qe7 {[%clk 0:01:41.3]} 22. Rh3 {[%clk 0:02:21.6]}
22... Bf5 {[%clk 0:01:37.1]} 23. Bg4 {[%clk 0:02:20.6]} 23... Qe6 {[%clk
0:01:37.8]} 24. Bxf5 {[%clk 0:02:08.9]} 24... Qxf5 {[%clk 0:01:38.4]} 25. Qh5
{[%clk 0:02:10.5]} 25... f6 {[%clk 0:01:30.1]} 26. g6 {[%clk 0:01:13.8]} 26...
Qxh5 {[%clk 0:01:25.2]} 27. Rxh5 {[%clk 0:01:14.7]} 27... Nf8 {[%clk 0:01:26.5]}
28. Rxd5 {[%clk 0:01:02.7]} 28... Nxg6 {[%clk 0:01:23.5]} 29. Nxc4 {[%clk
0:01:03.7]} 29... Nce7 {[%clk 0:01:14.9]} 30. Rc5 {[%clk 0:01:01]} 30... Nf8
{[%clk 0:01:10.4]} 31. Nb6 {[%clk 0:00:58.1]} 31... Rab8 {[%clk 0:01:09.8]} 32.
a5 {[%clk 0:00:52.7]} 32... Ne6 {[%clk 0:01:09.3]} 33. Rc4 {[%clk 0:00:54.3]}
33... Nf5 {[%clk 0:01:09.5]} 34. Bb4 {[%clk 0:00:42.8]} 34... Nd8 {[%clk
0:01:02.2]} 35. Rc8 {[%clk 0:00:30.5]} 35... Nf7 {[%clk 0:01:01.2]} 36. Rxb8
{[%clk 0:00:31.4]} 36... Rxb8 {[%clk 0:01:01.8]} 37. Rc8+ {[%clk 0:00:28.2]}
37... Rxc8 {[%clk 0:01:02.5]} 38. Nxc8 {[%clk 0:00:30.1]} 38... Nd8 {[%clk
0:01:02.2]} 39. Bc5 {[%clk 0:00:22.7]} 39... Nc6 {[%clk 0:01:02.1]} 40. d5
{[%clk 0:00:19.2]} 40... Nxa5 {[%clk 0:01:02]} 41. e4 {[%clk 0:00:20.8]} 41...
Nb7 {[%clk 0:01:01.3]} 42. Ba3 {[%clk 0:00:16.9]} 42... Nd4 {[%clk 0:01:01.9]}
43. e5 {[%clk 0:00:17.2]} 43... fxe5 {[%clk 0:00:58.9]} 44. fxe5 {[%clk
0:00:19.1]} 44... Nb5 {[%clk 0:00:55.8]} 45. Bb2 {[%clk 0:00:20]} 45... Nc7
{[%clk 0:00:55.4]} 46. Nb6 {[%clk 0:00:20.6]} 46... Kf7 {[%clk 0:00:54.7]} 47.
Ke3 {[%clk 0:00:22.1]} 47... g5 {[%clk 0:00:38.8]} 48. Bd4 {[%clk 0:00:21.1]}
48... Nb5 {[%clk 0:00:37.5]} 49. Ke4 {[%clk 0:00:20.9]} 49... Nxd4 {[%clk
0:00:33.8]} 50. Kxd4 {[%clk 0:00:22.8]} 50... g4 {[%clk 0:00:35.6]} 51. e6+
{[%clk 0:00:22.9]} 51... Kf6 {[%clk 0:00:34.5]} 52. Nd7+ {[%clk 0:00:19.1]}
52... Ke7 {[%clk 0:00:34.7]} 53. Ke5 {[%clk 0:00:19.8]} 53... g3 {[%clk
0:00:34.9]} 54. Nf6 {[%clk 0:00:13]} 54... g2 {[%clk 0:00:34.9]} 55. d6+ {[%clk
0:00:13.3]} 55... Nxd6 {[%clk 0:00:33.5]} 56. Nd5+ {[%clk 0:00:14.6]} 56... Kf8
{[%clk 0:00:29.6]} 57. e7+ {[%clk 0:00:06.6]} 57... Kf7 {[%clk 0:00:31.5]} 58.
Kxd6 {[%clk 0:00:06.5]} 58... g1=Q {[%clk 0:00:31.8]} 59. Kd7 {[%clk 0:00:07.1]}
59... Qg4+ {[%clk 0:00:29.8]} 60. Kd6 {[%clk 0:00:04.8]} 60... Qe6+ {[%clk
0:00:30.1]} 61. Kc5 {[%clk 0:00:06.3]} 61... a5 {[%clk 0:00:30.5]} 62. Kd4
{[%clk 0:00:07]} 62... a4 {[%clk 0:00:30.7]} 63. e8=Q+ {[%clk 0:00:07.1]} 63...
Qxe8 {[%clk 0:00:30.8]} 64. Nc3 {[%clk 0:00:08.5]} 64... Qe7 {[%clk 0:00:30.4]}
65. Nxa4 {[%clk 0:00:08.6]} 65... Qh4+ {[%clk 0:00:31.5]} 66. Kc5 {[%clk
0:00:10.2]} 66... Qxa4 {[%clk 0:00:33]} 67. Kb6 {[%clk 0:00:12.1]} 67... Qc2
{[%clk 0:00:34.2]} 68. Kb5 {[%clk 0:00:13.1]} 68... Ke6 {[%clk 0:00:36.1]} 69.
Kb4 {[%clk 0:00:15]} 69... Kd5 {[%clk 0:00:37.6]} 70. Ka3 {[%clk 0:00:16.9]}
70... Qb1 {[%clk 0:00:38.5]} 71. Ka4 {[%clk 0:00:18.1]} 71... Kc5 {[%clk
0:00:39.2]} 72. Ka3 {[%clk 0:00:20]} 72... Kc4 {[%clk 0:00:34.2]} 73. Ka4 {[%clk
0:00:21.9]} 73... Qe1 {[%clk 0:00:31.5]} 74. Ka3 {[%clk 0:00:12.8]} 74... Qa1#
{[%clk 0:00:33.4]} 0-1

[Event "*** Titled Tuesday Blitz"]
[Site "Chess.com"]
[Date "2019.04.02"]
[Round "2"]
[White "Benjoneliere44"]
[Black "INDIAN-ELEPHANT"]
[Result "1/2-1/2"]
[WhiteElo "2461"]
[BlackElo "2705"]
[TimeControl "180+2"]
[EndTime "14:25:03 PDT"]
[Termination "Game drawn by agreement"]

1. d4 {[%clk 0:03:01.9]} 1... Nf6 {[%clk 0:03:00.7]} 2. Bf4 {[%clk 0:03:01.8]}
2... e6 {[%clk 0:03:02.6]} 3. e3 {[%clk 0:03:02.5]} 3... c5 {[%clk 0:03:03.5]}
4. c3 {[%clk 0:03:03.7]} 4... Nc6 {[%clk 0:03:04.1]} 5. Nf3 {[%clk 0:03:03.9]}
5... Qb6 {[%clk 0:03:02.7]} 6. Qb3 {[%clk 0:03:04.4]} 6... Qxb3 {[%clk
0:02:52.3]} 7. axb3 {[%clk 0:03:06.3]} 7... Nh5 {[%clk 0:02:53.1]} 8. Bc7 {[%clk
0:02:50.3]} 8... d6 {[%clk 0:02:47]} 9. dxc5 {[%clk 0:02:48.5]} 9... dxc5 {[%clk
0:02:47]} 10. h3 {[%clk 0:02:49.8]} 10... Nf6 {[%clk 0:02:45]} 11. Nbd2 {[%clk
0:02:44.6]} 11... Nd5 {[%clk 0:02:45.6]} 12. Bg3 {[%clk 0:02:42]} 12... Be7
{[%clk 0:02:46]} 13. Nc4 {[%clk 0:02:29.7]} 13... f5 {[%clk 0:01:43.1]} 14. Nd6+
{[%clk 0:02:09.1]} 14... Bxd6 {[%clk 0:01:39.6]} 15. Bxd6 {[%clk 0:02:11]} 15...
b6 {[%clk 0:01:41.2]} 16. Ne5 {[%clk 0:02:04.6]} 16... Nxe5 {[%clk 0:01:33.3]}
17. Bxe5 {[%clk 0:02:06.5]} 17... O-O {[%clk 0:01:28.2]} 18. Bc4 {[%clk
0:01:59.5]} 18... Bb7 {[%clk 0:01:28.3]} 19. Ke2 {[%clk 0:01:51.9]} 19... a6
{[%clk 0:01:24.2]} 20. f3 {[%clk 0:01:46.2]} 20... b5 {[%clk 0:01:16]} 21. Bd3
{[%clk 0:01:45.6]} 21... Rac8 {[%clk 0:01:09.1]} 22. Bc2 {[%clk 0:01:42.5]}
22... Rfd8 {[%clk 0:00:53.2]} 23. Rhd1 {[%clk 0:01:41.2]} 23... Kf7 {[%clk
0:00:38.7]} 24. Rd2 {[%clk 0:01:39.4]} 24... Ne7 {[%clk 0:00:27.4]} 25. Rad1
{[%clk 0:01:35.6]} 25... Rxd2+ {[%clk 0:00:27.4]} 26. Rxd2 {[%clk 0:01:37.5]}
26... Bc6 {[%clk 0:00:17.6]} 27. Bd6 {[%clk 0:01:21.6]} 27... Be8 {[%clk
0:00:15.7]} 28. b4 {[%clk 0:01:14.6]} 28... cxb4 {[%clk 0:00:15.5]} 29. Bxb4
{[%clk 0:01:16.5]} 29... Nd5 {[%clk 0:00:16.5]} 30. Ba5 {[%clk 0:01:17.6]} 30...
Bc6 {[%clk 0:00:16.7]} 31. Bb3 {[%clk 0:01:13.7]} 31... Ke7 {[%clk 0:00:17.2]}
32. Kf2 {[%clk 0:01:08.7]} 32... g5 {[%clk 0:00:16.1]} 33. g4 {[%clk 0:01:01.5]}
33... f4 {[%clk 0:00:16.9]} 34. Bxd5 {[%clk 0:00:52.7]} 34... fxe3+ {[%clk
0:00:16.8]} 35. Kxe3 {[%clk 0:00:54.6]} 35... Bxd5 {[%clk 0:00:18.6]} 36. Bb4+
{[%clk 0:00:52.5]} 36... Kf6 {[%clk 0:00:18.8]} 37. Bd6 {[%clk 0:00:50.8]} 37...
a5 {[%clk 0:00:18.5]} 38. Bg3 {[%clk 0:00:48.7]} 38... a4 {[%clk 0:00:18.9]} 39.
Rd4 {[%clk 0:00:47.3]} 39... a3 {[%clk 0:00:18]} 40. bxa3 {[%clk 0:00:46.2]}
40... Rxc3+ {[%clk 0:00:19.2]} 41. Rd3 {[%clk 0:00:38.4]} 41... Rxd3+ {[%clk
0:00:20.3]} 42. Kxd3 {[%clk 0:00:40.3]} 42... Bxf3 {[%clk 0:00:21.8]} 43. Kd4
{[%clk 0:00:41.2]} 43... Bg2 {[%clk 0:00:21.7]} 44. h4 {[%clk 0:00:42.5]} 44...
h6 {[%clk 0:00:22.7]} 45. Kc5 {[%clk 0:00:41.6]} 45... Bf1 {[%clk 0:00:22.4]}
46. Bf2 {[%clk 0:00:39.4]} 46... Be2 {[%clk 0:00:19.8]} 47. Bd4+ {[%clk
0:00:38.5]} 47... e5 {[%clk 0:00:20.2]} 48. Bf2 {[%clk 0:00:38.3]} 48... gxh4
{[%clk 0:00:18.5]} 49. Bxh4+ {[%clk 0:00:39]} 49... Kg6 {[%clk 0:00:19.7]} 50.
Kd6 {[%clk 0:00:38.4]} 50... e4 {[%clk 0:00:20.6]} 51. Ke5 {[%clk 0:00:39.4]}
51... Bf3 {[%clk 0:00:21.4]} 52. Kf4 {[%clk 0:00:40.2]} 52... Bg2 {[%clk
0:00:21]} 53. Bf2 {[%clk 0:00:39.4]} 53... Kf6 {[%clk 0:00:17.6]} 54. Be3 {[%clk
0:00:39.7]} 54... Kg6 {[%clk 0:00:16.6]} 55. Bd4 {[%clk 0:00:39.6]} 55... Bf3
{[%clk 0:00:17.6]} 56. Be3 {[%clk 0:00:39.9]} 56... Bd1 {[%clk 0:00:16.7]} 57.
Kg3 {[%clk 0:00:36.9]} 57... Be2 {[%clk 0:00:15]} 58. Kf4 {[%clk 0:00:37.6]}
58... Bd1 {[%clk 0:00:15.9]} 59. Kg3 {[%clk 0:00:38.6]} 59... Be2 {[%clk
0:00:15.8]} 60. Kf4 {[%clk 0:00:39.7]} 60... h5 {[%clk 0:00:17.3]} 61. gxh5+
{[%clk 0:00:40.4]} 61... Kxh5 {[%clk 0:00:17.3]} 62. Bc5 {[%clk 0:00:41]} 62...
Bd1 {[%clk 0:00:19.2]} 63. Ke3 {[%clk 0:00:41.2]} 63... Bc2 {[%clk 0:00:20.2]}
64. Bb4 {[%clk 0:00:43.1]} 64... Kg4 {[%clk 0:00:20.8]} 65. Bc5 {[%clk 0:00:45]}
65... Kf5 {[%clk 0:00:21.7]} 66. Bb4 {[%clk 0:00:46.9]} 66... Ke5 {[%clk
0:00:22.7]} 67. Bc5 {[%clk 0:00:48.8]} 67... Ke6 {[%clk 0:00:23.2]} 68. Bb4
{[%clk 0:00:50.7]} 68... Kd5 {[%clk 0:00:24.5]} 69. Bd2 {[%clk 0:00:51.2]} 69...
Bd3 {[%clk 0:00:24.7]} 70. Bb4 {[%clk 0:00:53.1]} 70... Kc4 {[%clk 0:00:25.7]}
71. Bf8 {[%clk 0:00:53.1]} 71... Kb3 {[%clk 0:00:26.9]} 72. Be7 {[%clk
0:00:54.1]} 72... Ka4 {[%clk 0:00:28.1]} 73. Bf8 {[%clk 0:00:55.1]} 73... Ka5
{[%clk 0:00:29.2]} 74. Bb4+ {[%clk 0:00:55.9]} 74... Ka6 {[%clk 0:00:30.4]} 75.
Bd6 {[%clk 0:00:57.8]} 75... Kb6 {[%clk 0:00:32.3]} 76. Bb4 {[%clk 0:00:58.8]}
76... Kc6 {[%clk 0:00:34.2]} 77. Bf8 {[%clk 0:01:00.1]} 77... Kd5 {[%clk
0:00:36.1]} 78. Bb4 {[%clk 0:01:01.6]} 78... Kc4 {[%clk 0:00:38]} 79. Bf8 {[%clk
0:01:02.1]} 79... Kb3 {[%clk 0:00:39.9]} 80. Bb4 {[%clk 0:01:03.2]} 80... Ka4
{[%clk 0:00:41.8]} 81. Bc5 {[%clk 0:01:03.4]} 81... Ka5 {[%clk 0:00:43.7]} 82.
Bb4+ {[%clk 0:01:04]} 82... Ka6 {[%clk 0:00:45.6]} 83. Bc5 {[%clk 0:01:04.9]}
83... b4 {[%clk 0:00:47.5]} 84. axb4 {[%clk 0:01:03.9]} 84... Kb5 {[%clk
0:00:48.7]} 85. Be7 {[%clk 0:01:05.2]} 85... Kc6 {[%clk 0:00:49.6]} 1/2-1/2

[Event "*** Titled Tuesday Blitz"]
[Site "Chess.com"]
[Date "2019.04.02"]
[Round "2"]
[White "Gahan-MG"]
[Black "Durarbayli"]
[Result "1/2-1/2"]
[WhiteElo "2560"]
[BlackElo "2754"]
[TimeControl "180+2"]
[EndTime "14:25:09 PDT"]
[Termination "Game drawn - insufficient material"]

1. e4 {[%clk 0:03:01.9]} 1... e5 {[%clk 0:03:00.1]} 2. Nf3 {[%clk 0:03:01.7]}
2... Nc6 {[%clk 0:03:01.4]} 3. d4 {[%clk 0:02:55]} 3... exd4 {[%clk 0:03:01.9]}
4. Nxd4 {[%clk 0:02:56.9]} 4... Qf6 {[%clk 0:03:02.6]} 5. Nxc6 {[%clk
0:02:56.4]} 5... Bc5 {[%clk 0:03:03.4]} 6. Qd2 {[%clk 0:02:57.8]} 6... dxc6
{[%clk 0:02:59.8]} 7. Nc3 {[%clk 0:02:58.9]} 7... Ne7 {[%clk 0:02:55.8]} 8. Na4
{[%clk 0:02:59.8]} 8... Bd4 {[%clk 0:02:13.1]} 9. c3 {[%clk 0:02:59.5]} 9... Bb6
{[%clk 0:02:14.1]} 10. Nxb6 {[%clk 0:02:57.5]} 10... axb6 {[%clk 0:02:16]} 11.
Qf4 {[%clk 0:02:58.3]} 11... Qe6 {[%clk 0:02:09.6]} 12. Be2 {[%clk 0:02:36.1]}
12... O-O {[%clk 0:02:05.7]} 13. O-O {[%clk 0:02:34.2]} 13... Ng6 {[%clk
0:01:34.6]} 14. Qxc7 {[%clk 0:02:33.3]} 14... Qxe4 {[%clk 0:01:35.7]} 15. Bf3
{[%clk 0:02:28.5]} 15... Qc4 {[%clk 0:01:36.4]} 16. Qxb6 {[%clk 0:02:18.8]}
16... Nh4 {[%clk 0:01:29.3]} 17. Qd4 {[%clk 0:01:44.5]} 17... Nxf3+ {[%clk
0:01:26.2]} 18. gxf3 {[%clk 0:01:46.4]} 18... Qb5 {[%clk 0:01:11.7]} 19. Re1
{[%clk 0:01:24.7]} 19... Qh5 {[%clk 0:00:53.8]} 20. Qf4 {[%clk 0:01:06.7]} 20...
Ra5 {[%clk 0:00:53.3]} 21. Qg3 {[%clk 0:00:48.8]} 21... Be6 {[%clk 0:00:45.7]}
22. Bf4 {[%clk 0:00:45.8]} 22... Rf5 {[%clk 0:00:42.5]} 23. Re5 {[%clk
0:00:42.2]} 23... Rxe5 {[%clk 0:00:37.9]} 24. Bxe5 {[%clk 0:00:43.2]} 24... f6
{[%clk 0:00:39.4]} 25. Bd6 {[%clk 0:00:41.7]} 25... Re8 {[%clk 0:00:36.5]} 26.
Re1 {[%clk 0:00:41.8]} 26... Bxa2 {[%clk 0:00:36.8]} 27. Rxe8+ {[%clk
0:00:35.7]} 27... Qxe8 {[%clk 0:00:38.7]} 28. Qf4 {[%clk 0:00:28.7]} 28... Bd5
{[%clk 0:00:21.6]} 29. Bc5 {[%clk 0:00:25.6]} 29... Qg6+ {[%clk 0:00:21.9]} 30.
Qg4 {[%clk 0:00:21.1]} 30... Qb1+ {[%clk 0:00:20.7]} 31. Kg2 {[%clk 0:00:22.1]}
31... h6 {[%clk 0:00:22.2]} 32. Qc8+ {[%clk 0:00:22.8]} 32... Kh7 {[%clk
0:00:23.5]} 33. b4 {[%clk 0:00:16.8]} 33... Qd3 {[%clk 0:00:23.2]} 34. Qg4
{[%clk 0:00:14.7]} 34... f5 {[%clk 0:00:18.8]} 35. Qf4 {[%clk 0:00:11.8]} 35...
g5 {[%clk 0:00:17.5]} 36. Qc7+ {[%clk 0:00:11.8]} 36... Kg6 {[%clk 0:00:18.9]}
37. Qd6+ {[%clk 0:00:11.6]} 37... Kh5 {[%clk 0:00:20.3]} 38. Qg3 {[%clk
0:00:09.1]} 38... g4 {[%clk 0:00:21.6]} 39. Qf4 {[%clk 0:00:02.4]} 39... Bxf3+
{[%clk 0:00:21.9]} 40. Kg3 {[%clk 0:00:03.5]} 40... Be4+ {[%clk 0:00:21.2]} 41.
Be3 {[%clk 0:00:04.1]} 41... Kg6 {[%clk 0:00:19.5]} 42. Qxh6+ {[%clk 0:00:04.9]}
42... Kf7 {[%clk 0:00:21.1]} 43. Qh7+ {[%clk 0:00:04.8]} 43... Ke6 {[%clk
0:00:22.6]} 44. Qxb7 {[%clk 0:00:02.8]} 44... Qxc3 {[%clk 0:00:22.4]} 45. Qc8+
{[%clk 0:00:04.2]} 45... Kd5 {[%clk 0:00:23.5]} 46. Qd7+ {[%clk 0:00:05.3]}
46... Kc4 {[%clk 0:00:24.9]} 47. Qe6+ {[%clk 0:00:04.1]} 47... Kd3 {[%clk
0:00:24.7]} 48. Qd6+ {[%clk 0:00:05.3]} 48... Ke2 {[%clk 0:00:25.4]} 49. Qc5
{[%clk 0:00:06.6]} 49... Qd3 {[%clk 0:00:23.7]} 50. Kf4 {[%clk 0:00:07.6]} 50...
Bd5 {[%clk 0:00:24]} 51. Qd4 {[%clk 0:00:08.7]} 51... Qc2 {[%clk 0:00:21.8]} 52.
Qe5 {[%clk 0:00:09.1]} 52... Be4 {[%clk 0:00:21.3]} 53. Qd4 {[%clk 0:00:10.2]}
53... Kf1 {[%clk 0:00:21.7]} 54. Kg3 {[%clk 0:00:09.8]} 54... Ke2 {[%clk
0:00:22.1]} 55. h3 {[%clk 0:00:11.1]} 55... gxh3 {[%clk 0:00:22.6]} 56. Kxh3
{[%clk 0:00:13]} 56... Qb1 {[%clk 0:00:16.5]} 57. Kg3 {[%clk 0:00:11.4]} 57...
Qg1+ {[%clk 0:00:17.1]} 58. Kf4 {[%clk 0:00:12.9]} 58... Qh2+ {[%clk 0:00:18]}
59. Kg5 {[%clk 0:00:13.7]} 59... Qg1+ {[%clk 0:00:18.3]} 60. Kf6 {[%clk
0:00:14.4]} 60... Kf3 {[%clk 0:00:18.9]} 61. Qe5 {[%clk 0:00:14.6]} 61... Qg4
{[%clk 0:00:18.6]} 62. Ke7 {[%clk 0:00:13.2]} 62... Qh4+ {[%clk 0:00:19]} 63.
Kd6 {[%clk 0:00:14.3]} 63... f4 {[%clk 0:00:18.9]} 64. Bd4 {[%clk 0:00:15]}
64... Qd8+ {[%clk 0:00:17.3]} 65. Kc5 {[%clk 0:00:15.4]} 65... Qh4 {[%clk
0:00:09.9]} 66. b5 {[%clk 0:00:14.3]} 66... cxb5 {[%clk 0:00:11.8]} 67. Kxb5
{[%clk 0:00:16]} 67... Bd3+ {[%clk 0:00:13.2]} 68. Kc5 {[%clk 0:00:16.9]} 68...
Be4 {[%clk 0:00:14.9]} 69. Qf6 {[%clk 0:00:16.3]} 69... Qh5+ {[%clk 0:00:15.7]}
70. Be5 {[%clk 0:00:16.9]} 70... Bf5 {[%clk 0:00:13.5]} 71. Kd6 {[%clk
0:00:17.4]} 71... Qg4 {[%clk 0:00:12.9]} 72. Bd4 {[%clk 0:00:18.5]} 72... Kg2
{[%clk 0:00:13.7]} 73. Qe5 {[%clk 0:00:19.5]} 73... f3 {[%clk 0:00:15]} 74. Qg3+
{[%clk 0:00:19.3]} 74... Qxg3+ {[%clk 0:00:16.2]} 75. fxg3 {[%clk 0:00:21.2]}
75... Kxg3 {[%clk 0:00:17.7]} 76. Ke5 {[%clk 0:00:22.8]} 76... Bd3 {[%clk
0:00:18.7]} 77. Be3 {[%clk 0:00:23.7]} 77... f2 {[%clk 0:00:20.6]} 78. Bxf2+
{[%clk 0:00:24.5]} 1/2-1/2

[Event "*** Titled Tuesday Blitz"]
[Site "Chess.com"]
[Date "2019.04.02"]
[Round "2"]
[White "Yurovskykh_Oleksandr"]
[Black "IakovUlivar"]
[Result "1-0"]
[WhiteElo "2515"]
[BlackElo "2521"]
[TimeControl "180+2"]
[EndTime "14:25:19 PDT"]
[Termination "Yurovskykh_Oleksandr won by resignation"]

1. d4 {[%clk 0:03:01.9]} 1... Nf6 {[%clk 0:03:00.2]} 2. Nf3 {[%clk 0:02:58.8]}
2... d5 {[%clk 0:03:00.6]} 3. c3 {[%clk 0:02:59.3]} 3... e6 {[%clk 0:02:53.7]}
4. Bf4 {[%clk 0:02:58.7]} 4... c5 {[%clk 0:02:53.5]} 5. e3 {[%clk 0:02:59.5]}
5... Nc6 {[%clk 0:02:54.5]} 6. Nbd2 {[%clk 0:03:00.4]} 6... Be7 {[%clk
0:02:55.3]} 7. Ne5 {[%clk 0:03:00.7]} 7... Nd7 {[%clk 0:02:32]} 8. Nxd7 {[%clk
0:02:54.3]} 8... Bxd7 {[%clk 0:02:32.3]} 9. Bd3 {[%clk 0:02:54.8]} 9... Qb6
{[%clk 0:02:20.3]} 10. Rb1 {[%clk 0:02:53.4]} 10... cxd4 {[%clk 0:01:51.1]} 11.
exd4 {[%clk 0:02:51.6]} 11... Nxd4 {[%clk 0:01:25.6]} 12. Be3 {[%clk 0:02:44.5]}
12... Bc5 {[%clk 0:01:11.5]} 13. cxd4 {[%clk 0:02:38.8]} 13... Bxd4 {[%clk
0:01:13.4]} 14. Bxd4 {[%clk 0:02:39.5]} 14... Qxd4 {[%clk 0:01:15.3]} 15. Nf3
{[%clk 0:02:38.2]} 15... Qb4+ {[%clk 0:01:14.2]} 16. Qd2 {[%clk 0:02:39.2]}
16... Qxd2+ {[%clk 0:01:13]} 17. Kxd2 {[%clk 0:02:37.9]} 17... Ke7 {[%clk
0:01:14.9]} 18. Rbc1 {[%clk 0:02:38.5]} 18... Kd6 {[%clk 0:01:10.7]} 19. Nd4
{[%clk 0:02:36.4]} 19... e5 {[%clk 0:01:02.1]} 20. Nb5+ {[%clk 0:02:34.1]} 20...
Bxb5 {[%clk 0:01:02.5]} 21. Bxb5 {[%clk 0:02:36]} 21... Rac8 {[%clk 0:00:46.9]}
22. Rxc8 {[%clk 0:02:35.8]} 22... Rxc8 {[%clk 0:00:48.8]} 23. Rc1 {[%clk
0:02:36.9]} 23... Rxc1 {[%clk 0:00:34.3]} 24. Kxc1 {[%clk 0:02:38.8]} 24... Kc5
{[%clk 0:00:35.9]} 25. Be8 {[%clk 0:02:37.5]} 25... f5 {[%clk 0:00:26.9]} 26. g3
{[%clk 0:02:27.2]} 26... Kd4 {[%clk 0:00:23.4]} 27. Kd2 {[%clk 0:02:27.9]} 27...
g5 {[%clk 0:00:16.8]} 28. Bd7 {[%clk 0:02:23.5]} 28... f4 {[%clk 0:00:16.7]} 29.
g4 {[%clk 0:02:19.2]} 29... h6 {[%clk 0:00:16]} 30. Bc8 {[%clk 0:02:15.6]} 30...
b6 {[%clk 0:00:16.3]} 31. Be6 {[%clk 0:02:15.5]} 31... e4 {[%clk 0:00:16.9]} 32.
Ke2 {[%clk 0:02:11.9]} 32... a5 {[%clk 0:00:13.4]} 33. f3 {[%clk 0:02:11.1]}
33... Ke5 {[%clk 0:00:10.5]} 34. Bg8 {[%clk 0:02:10.1]} 34... Kd4 {[%clk
0:00:11]} 35. a4 {[%clk 0:02:09]} 35... Ke5 {[%clk 0:00:10.8]} 36. Bf7 {[%clk
0:02:04.4]} 36... Kd4 {[%clk 0:00:11.8]} 37. Be8 {[%clk 0:02:04]} 37... Ke5
{[%clk 0:00:12.1]} 38. Bc6 {[%clk 0:02:02.6]} 38... Kd4 {[%clk 0:00:12]} 39. Bb5
{[%clk 0:01:57.1]} 39... Ke5 {[%clk 0:00:12.2]} 40. Kd2 {[%clk 0:01:52]} 40...
Kd4 {[%clk 0:00:13.3]} 41. Be2 {[%clk 0:01:52.3]} 41... Kc5 {[%clk 0:00:05.7]}
42. Kc3 {[%clk 0:01:40.5]} 42... d4+ {[%clk 0:00:06.8]} 43. Kd2 {[%clk
0:01:39.5]} 43... Kd5 {[%clk 0:00:04.4]} 44. Ba6 {[%clk 0:01:23.8]} 44... Ke5
{[%clk 0:00:02.6]} 45. Bb7 {[%clk 0:01:21.9]} 45... e3+ {[%clk 0:00:02.9]} 46.
Kd3 {[%clk 0:01:23]} 46... Kd6 {[%clk 0:00:04.3]} 47. Ba6 {[%clk 0:01:22]} 47...
Kc5 {[%clk 0:00:06.2]} 48. b3 {[%clk 0:01:21.4]} 48... Kb4 {[%clk 0:00:05.6]}
49. Bc4 {[%clk 0:00:56]} 49... Kc5 {[%clk 0:00:06.7]} 50. h3 {[%clk 0:00:47.2]}
50... Kb4 {[%clk 0:00:04.8]} 51. Kxd4 {[%clk 0:00:46.2]} 51... Ka3 {[%clk
0:00:03.3]} 52. Kd5 {[%clk 0:00:25]} 52... Kb4 {[%clk 0:00:05.2]} 53. Kc6 {[%clk
0:00:24.8]} 53... b5 {[%clk 0:00:04.5]} 54. axb5 {[%clk 0:00:14]} 54... a4
{[%clk 0:00:06.4]} 55. b6 {[%clk 0:00:08.9]} 55... axb3 {[%clk 0:00:07.5]} 56.
b7 {[%clk 0:00:07.5]} 56... Kxc4 {[%clk 0:00:08.6]} 57. b8=Q {[%clk 0:00:08.7]}
57... Kc3 {[%clk 0:00:09]} 58. Kc5 {[%clk 0:00:08.5]} 58... b2 {[%clk
0:00:08.8]} 59. Qb4+ {[%clk 0:00:09.2]} 59... Kc2 {[%clk 0:00:10.2]} 60. Qc4+
{[%clk 0:00:10.3]} 60... Kd2 {[%clk 0:00:11.2]} 61. Qb3 {[%clk 0:00:10.8]} 61...
Ke2 {[%clk 0:00:09.6]} 62. Qxb2+ {[%clk 0:00:11]} 62... Kxf3 {[%clk 0:00:11.5]}
63. Kd4 {[%clk 0:00:11.9]} 63... e2 {[%clk 0:00:08.8]} 64. Qd2 {[%clk
0:00:07.1]} 64... Kf2 {[%clk 0:00:08.4]} 65. Kd3 {[%clk 0:00:06.9]} 65... f3
{[%clk 0:00:09.5]} 66. Qe3+ {[%clk 0:00:08]} 66... Kg2 {[%clk 0:00:07.9]} 67.
Kd2 {[%clk 0:00:07.9]} 67... Kg3 {[%clk 0:00:06.3]} 68. Ke1 {[%clk 0:00:06.2]}
68... Kg2 {[%clk 0:00:05.3]} 69. Qf2+ {[%clk 0:00:06.9]} 69... Kxh3 {[%clk
0:00:06.2]} 70. Qxf3+ {[%clk 0:00:08.1]} 70... Kh4 {[%clk 0:00:07.7]} 71. Kxe2
{[%clk 0:00:07.3]} 1-0